Cogmind - Beta 15 @@@ ROGUE MODE // 2025.09.20 @ 16:01:37 Player: Blue Result: Destroyed by HD-ZE4(R) with Subdweller Machine Gun Performance ------------- Evolutions (0) 0 Regions Visited (3) 600 Robots Destroyed (14) 70 Value Destroyed (365) 365 Prototype IDs (1) 20 Alien Tech Used (0) 0 Bonus (14) 14 TOTAL SCORE: 1069 Bonus ------- Follower Combat Kills 14 Cogmind --------- Core Integrity 0/250 Matter 230/300 Energy 100/100 System Corruption 1% Temperature Cool (0) Movement Core (1350) Ox26 Location -10/Subcaves Parts ------- > --- POWER (1) -------- (None) > --- PROPULSION (2) --- (None) > --- UTILITY (2) ------ Huge Storage Unit > --- WEAPON (2) ------- (None) > --- INVENTORY (25) --- Ion Engine Light Ion Engine Improved Heat Sink Small Storage Unit Large Storage Unit Compact Matter Pod (150) Core Shielding Subdweller Laser Light Assault Rifle Battle Rifle Mining Laser Peak State ------------ > --- POWER ------------ Neutrino Core > --- PROPULSION ------- Wheel Compact Wheel > --- UTILITY ---------- Huge Storage Unit Experimental Sensor Array > --- WEAPON ----------- Battle Rifle Battle Rifle > --- INVENTORY -------- Ion Engine Ion Engine Light Ion Engine Light Nuclear Core Improved Heat Sink Small Storage Unit Large Storage Unit Compact Matter Pod Core Shielding Subdweller Laser Light Assault Rifle Light Cannon Light Cannon Mining Laser [Rating: 24] Favorites ----------- Power Ion Engine Engine Ion Engine Power Core Neutrino Core Propulsion Compact Wheel Wheel Compact Wheel Utility Huge Storage Unit Device Experimental Sensor Array Storage Huge Storage Unit Protection Core Shielding Weapon Light Cannon Energy Gun Small Laser Ballistic Gun Light Assault Rifle Ballistic Cannon Light Cannon Special Weapon Mining Laser Build | -11 -10 -10 -10 ------- Run | Yrd Mat Min Sub Slots Evolved . | . . . . Power . | . . . . Propulsion . | . . . . Utility . | . . . . Weapon . | . . . . Parts Attached 22 | 6 4 5 7 Power 5 | 1 . 1 3 Engine 3 | 1 . 1 1 Core 2 | . . . 2 Reactor . | . . . . Propulsion 3 | 2 . . 1 Treads . | . . . . Leg . | . . . . Wheel 3 | 2 . . 1 Hover . | . . . . Flight . | . . . . Utility 6 | 1 3 2 . Device 1 | . . 1 . Storage 4 | 1 3 . . Processor . | . . . . Hackware . | . . . . Protection 1 | . . 1 . Artifact . | . . . . Weapon 8 | 2 1 2 3 Energy Gun 1 | 1 . . . Energy Cannon . | . . . . Ballistic Gun 4 | 1 . 1 2 Ballistic Cannon 2 | . 1 1 . Launcher . | . . . . Special Weapon 1 | . . . 1 Impact Weapon . | . . . . Slashing Weapon . | . . . . Piercing Weapon . | . . . . Special Melee Weapon . | . . . . Unidentified Prototypes 1 | . . 1 . Parts Lost 11 | . . 1 10 Power 3 | . . 1 2 Propulsion 3 | . . . 3 Utility 1 | . . . 1 Weapon 4 | . . . 4 Highest Loss Streak 6 | . . 1 6 To Critical Strikes . | . . . . Average Backups 8 | . 2 7 12 Power 2 | . 1 2 3 Propulsion . | . . . . Utility 3 | . . 3 5 Weapon 2 | . . 1 4 Tool/Special . | . . . . Unused Backups 4 | . . . 4 Power 1 | . . . 1 Propulsion . | . . . . Utility 2 | . . . 2 Weapon 1 | . . . 1 Tool/Special . | . . . . Average Slot Usage (%) 97 | . 97 99 94 Engine 10 | . 14 13 5 Core 1 | . . . 4 Wheel 27 | . 28 28 27 Device 7 | . . 5 13 Storage 18 | . 25 20 14 Energy Gun 1 | . 8 . . Ballistic Gun 12 | . 14 14 10 Ballistic Cannon 12 | . 5 14 13 Special Weapon 1 | . . . 4 Peak Build Rating 24 | 6 7 17 24 Average Rating 13 | 3 6 11 18 On Entrance 7 | . 6 7 17 Naked Turns . | . . . . Heaviest Build 99 | 12 90 92 99 Greatest Support 26 | 26 26 26 26 Greatest Overweight (x) 26 | 1 3 3 26 Average Overweight (x) 2 | . . 3 3 Largest Inventory Capacity 25 | 8 25 25 25 Average Capacity 22 | 6 14 25 25 Most Carried 14 | 1 4 12 14 Average Carried 8 | . 2 7 12 Final Capacity 25 | 8 25 25 25 Final Carried 12 | 1 4 12 11 Class Distribution -------------------- 100% | Mutant Dominant Class ---------------- Mutant | -10/Materials Mutant | -10/Mines Mutant | -10/Subcaves Resources | -11 -10 -10 -10 ----------- Run | Yrd Mat Min Sub Matter Collected 810 | 231 139 198 242 Remotely . | . . . . Salvage Created 462 | . 172 55 235 Parts 19 | . 7 4 8 Haulers Intercepted 2 | . 2 . . Recyclers Shooed . | . . . . Parts Field Recycled . | . . . . Retrieved Matter . | . . . . Parts Self-Destructed 2 | . . . 2 Prevented . | . . . . Kills | -11 -10 -10 -10 ------- Run | Yrd Mat Min Sub Combat Hostiles Destroyed 14 | . 2 6 6 Guns 5 | . . 3 2 Cannons 9 | . 2 3 4 Classes Destroyed 5 | . 2 2 1 Hauler 2 | . 2 . . Swarmer 4 | . . 4 . Grunt 2 | . 2 . . Subdweller 6 | . . . 6 Assembled 2 | . . 2 . Best Kill Streak 2 | . 2 2 2 Combat Bots Only 2 | . 2 2 2 Max Kills in Single Turn 1 | . 1 1 1 Gunslinging . | . . . . Exploded . | . . . . Melee . | . . . . Uniques/NPCs Destroyed . | . . . . Combat | -11 -10 -10 -10 -------- Run | Yrd Mat Min Sub Hostile Shots Fired 103 | . 7 34 62 Missed 34 | . 3 12 19 Hits 69 | . 4 22 43 Melee 1 | . . 1 . Projectile 68 | . 4 21 43 Critical Strikes 5 | . . 2 3 Damage Taken 1304 | . 45 234 1025 Core 263 | . . 38 225 Absorbed by Shields . | . . . . Core Remaining (%) 100 | 100 . . . Volleys Fired 86 | . 12 21 53 Largest 2 | . 2 2 2 Hottest 100 | . 60 53 100 Shots Fired 145 | . 24 42 79 Gun 58 | . 15 21 22 Cannon 65 | . 9 21 35 Launcher . | . . . . Special 22 | . . . 22 Kinetic 120 | . 21 42 57 Thermal 25 | . 3 . 22 Explosive . | . . . . Electromagnetic . | . . . . Robot Hit Streak 12 | . 4 3 12 Robot Miss Streak 4 | . 2 4 2 Penetration Max . | . . . . Secondary Targets . | . . . . Shots Hit Robots 72 | . 15 19 38 Core Hits 26 | . 8 7 11 Critical Kills 1 | . . . 1 Critical Parts Destroyed . | . . . . Critical Strikes 2 | . . . 2 Destroy 1 | . . . 1 Blast 1 | . . . 1 Melee Attacks . | . . . . Impact . | . . . . Slashing . | . . . . Piercing . | . . . . Sneak Attacks . | . . . . Combat Hostiles . | . . . . Follow-up Attacks . | . . . . Damage Inflicted 1010 | . 177 263 570 Guns 316 | . 81 109 126 Cannons 691 | . 96 151 444 Explosions . | . . . . Melee . | . . . . Ramming 3 | . . 3 . Kinetic 996 | . 166 260 570 Thermal 11 | . 11 . . Explosive . | . . . . Electromagnetic . | . . . . Impact . | . . . . Slashing . | . . . . Piercing . | . . . . Highest Corruption 1 | . . 1 1 Average Corruption 1 | . . 1 1 Corruption Purged . | . . . . Corruption Blocked . | . . . . Effects 6 | . . 1 5 Matter Fused 3 | . . 1 2 Energy Discharges 2 | . . . 2 Parts Rejected 1 | . . . 1 Overload Shots . | . . . . Overflow Damage . | . . . . Projectiles . | . . . . Explosions . | . . . . Melee . | . . . . Knockbacks 9 | . 2 1 6 Impact . | . . . . Kinetic 8 | . 1 1 6 Secondary 1 | . 1 . . Self-Inflicted Damage 1 | . . 1 . Shots . | . . . . Rammed 1 | . . 1 . Targets Rammed 1 | . . 1 . Kicked . | . . . . Crushed . | . . . . Highest Temperature 266 | . 26 41 266 Average Temperature 32 | . 11 14 116 Received Heat Transfer 566 | . 15 80 471 Siege Activations . | . . . . Martial Activations . | . . . . Shielding Activations . | . . . . Robots Disrupted . | . . . . Combat Hostiles . | . . . . Robots Corrupted . | . . . . Combat Hostiles . | . . . . Parts Fried . | . . . . Impact Corruptions . | . . . . Robots Melted . | . . . . Combat Hostiles . | . . . . Parts Melted . | . . . . Heat Transferred 25 | . 25 . . Parts Sabotaged . | . . . . Parts Stolen . | . . . . Parts Stripped . | . . . . Power Chain Reactions . | . . . . Alert | -11 -10 -10 -10 ------- Run | Yrd Mat Min Sub Maximum Alert Level . | . . . . Low Security (%) 100 | 100 100 100 . Level 1 . | . . . . Level 2 . | . . . . Level 3 . | . . . . Level 4 . | . . . . Level 5 . | . . . . High Security . | . . . . Max Security . | . . . . Peak Influence 80 | . 50 80 . Initial . | . . . . Average 16 | . 9 20 . Influence Increases 238 | . 64 174 . Destroy 0b10 Robot/C 160 | . 40 120 . Destroy 0b10 Robot/NC 10 | . 10 . . Destroy Leader 34 | . 14 20 . Allied During Kill 4 | . . 4 . Lose Combat Pursuer 30 | . . 30 . Influence Decreases 238 | . 64 174 . Time Decay 238 | . 64 174 . Squads Dispatched 1 | . 1 . . Investigation . | . . . . Extermination . | . . . . Reinforcement 1 | . 1 . . Assault . | . . . . Garrison . | . . . . Intercept . | . . . . Searches Triggered . | . . . . Construction Impeded . | . . . . Haulers Reinforced . | . . . . Active Scanning Responses . | . . . . Cargo Convoy Interrupts . | . . . . Stealth | -11 -10 -10 -10 --------- Run | Yrd Mat Min Sub Distress Signals 2 | . 1 1 . Communications Jammed . | . . . . Distress Signals . | . . . . Times Spotted 32 | . 8 16 8 Peak Tracking Total 4 | . 4 3 2 Tactical Retreats 2 | . . 2 . Traps | -11 -10 -10 -10 ------- Run | Yrd Mat Min Sub Traps Triggered 1 | . . . 1 Indirectly . | . . . . Trap Hack Attempts . | . . . . Triggered . | . . . . Disarmed . | . . . . Reprogrammed . | . . . . Reused . | . . . . Traps Extracted . | . . . . Installed . | . . . . Triggered . | . . . . Machines | -11 -10 -10 -10 ---------- Run | Yrd Mat Min Sub Machines Disabled . | . . . . Max in Single Turn . | . . . . Machines Repaired . | . . . . Machines Dismantled . | . . . . Machines Sabotaged . | . . . . Overloaded Fab Kills . | . . . . Hacking | -11 -10 -10 -10 --------- Run | Yrd Mat Min Sub Machines Accessed 4 | . 3 . 1 Terminals 3 | . 3 . . Fabricators . | . . . . Repair Stations . | . . . . Recycling Units . | . . . . Scanalyzers . | . . . . Garrison Access . | . . . . Total Hacks 9 | . 6 . 3 Successful 3 | . . . 3 Failed 6 | . 6 . . Catastrophic 3 | . 3 . . Database Lockouts . | . . . . Manual . | . . . . Terminals 6 | . 6 . . Fabricators . | . . . . Repair Stations . | . . . . Recycling Units . | . . . . Scanalyzers . | . . . . Garrison Access . | . . . . Terminal Hacks 3 | . . . 3 Record 3 | . . . 3 Fabricator Hacks . | . . . . Repair Station Hacks . | . . . . Recycling Unit Hacks . | . . . . Scanalyzer . | . . . . Garrison Access Hacks . | . . . . Unauthorized Hacks . | . . . . Terminals . | . . . . Fabricators . | . . . . Repair Stations . | . . . . Recycling Units . | . . . . Scanalyzers . | . . . . Garrison Access . | . . . . Data Cores Recovered . | . . . . Used . | . . . . Hacking Detections 3 | . 3 . . Full Trace Events 1 | . 1 . . Feedback Events . | . . . . Feedback Blocked . | . . . . Robot Schematics Acquired . | . . . . Robots Built . | . . . . Authchips . | . . . . Time . | . . . . Total Robot Build Rating . | . . . . Part Schematics Acquired . | . . . . Parts Built . | . . . . Authchips . | . . . . Time . | . . . . Total Part Build Rating . | . . . . Parts Repaired . | . . . . Time . | . . . . Parts Recycled . | . . . . Recycled Matter . | . . . . Retrieved Matter . | . . . . Retrieved Components . | . . . . Parts Scanalyzed . | . . . . Part Schematics Acquired . | . . . . Parts Damaged . | . . . . Bothacking | -11 -10 -10 -10 ------------ Run | Yrd Mat Min Sub Used RIF Installer . | . . . . Robots Hacked . | . . . . Non-combat . | . . . . Combat . | . . . . Robot Hacks Applied . | . . . . Relay Couplers Released . | . . . . Fabnet Peak Effective % . | . . . . Robots Rewired . | . . . . Allies Hacked . | . . . . Hacks Repelled . | . . . . Allies | -11 -10 -10 -10 -------- Run | Yrd Mat Min Sub Total Allies 1 | . . 1 . Largest Group 1 | . . 1 . Highest-Rated Group 31 | . . 31 . Highest-Rated Ally 31 | . . 31 . Total Orders . | . . . . Ally Attacks 11 | . . 11 . Total Damage 167 | . . 167 . Kills 4 | . . 4 . Allies Corrupted . | . . . . Allies Melted 1 | . . . 1 Intel | -11 -10 -10 -10 ------- Run | Yrd Mat Min Sub Active Infowar (turns) 1171 | . . 294 877 Sensors 1171 | . . 294 877 Robot Analysis Total . | . . . . Derelict Logs Recovered 2 | . . 2 . Drone Launches . | . . . . Drone Recoveries . | . . . . Exploration | -11 -10 -10 -10 ------------- Run | Yrd Mat Min Sub Turns Passed 2096 | 53 363 793 887 Spaces Moved 1343 | 50 286 518 489 Core 18 | 17 . . 1 Treads . | . . . . Legs . | . . . . Wheels 1325 | 33 286 518 488 Hover . | . . . . Flight . | . . . . Fastest Speed 50 | 50 90 135 135 Average Speed 127 | 85 104 135 137 Slowest Speed 1350 | 100 135 135 1350 Overloaded Moves . | . . . . Propulsion Burnouts . | . . . . Robots Hopped . | . . . . Potential Cave-ins . | . . . . Cave-ins Triggered . | . . . . Exploration Rate (%) 41 | 3 41 91 29 Regions Visited 3 Branch Regions 2 Pre-discovered Areas 1 | . . 1 . Known Exits Taken . | . . . . Unknown Exits Taken 3 | 1 1 1 . Scrap Searched 1 | . . 1 . Spaces Dug . | . . . . Terrain Destroyed . | . . . . Melee . | . . . . Projectile . | . . . . AOE . | . . . . Terrain Rammed . | . . . . Walls Destroyed . | . . . . Machines Disabled . | . . . . Actions | -11 -10 -10 -10 --------- Run | Yrd Mat Min Sub Total 1538 | 56 328 569 585 Wait 71 | . 26 19 26 Move 1340 | 49 285 517 489 Hop . | . . . . Pick Up 11 | 1 1 6 3 Fast Attach 8 | 6 1 1 . Attach 5 | . . . 5 Detach . | . . . . Swap 16 | . 3 4 9 Drop . | . . . . Fire 86 | . 12 21 53 Melee . | . . . . Ram 1 | . . 1 . Kick . | . . . . Crush . | . . . . Escape Stasis . | . . . . Rewire . | . . . . Trap . | . . . . Miscellaneous . | . . . . Route ------- -11/Scrapyard -10/Materials (discovered 3 exits: [*Mat] / [*Min x2]) -10/Mines (discovered 2 exits: [*Mat] / *Sub) -10/Subcaves (discovered 1 exit: [*Mat]) History --------- Turn | Location | Event 7 | -11/Scrapyard | Discovered new exit (range 14) 54 | -11/Scrapyard | Entered Materials 153 | -10/Materials | Discovered new exit (range 3) 156 | -10/Materials | Discovered new exit (range 16) 303 | -10/Materials | Build established: Mutant 401 | -10/Materials | Discovered new exit (range 9) 417 | -10/Materials | Entered Mines 418 | -10/Mines | Assembled infested the area 423 | -10/Mines | Assisted by a Guerilla fighting off Assembled 746 | -10/Mines | Learned Materials security intel 755 | -10/Mines | Joined a pair of Derelicts in attacking an 0b10 outpost 797 | -10/Mines | Received a Mining Laser from a helpful Derelict 859 | -10/Mines | Learned location of Zion (-6) 913 | -10/Mines | Found a damaged Exp. Sensor Array with a note attached 916 | -10/Mines | Found Prototype Device 916 | -10/Mines | Identified Exp. Sensor Array 1167 | -10/Mines | Found a hidden stash of uninstalled traps 1196 | -10/Mines | Discovered new exit (range 4) 1196 | -10/Mines | Discovered new exit (range 10) 1210 | -10/Mines | Entered Subcaves 1211 | -10/Subcaves | Approached by a straggling Scientist 1378 | -10/Subcaves | Discovered new exit (range 4) 1489 | -10/Subcaves | Visited Clippyterm 1493 | -10/Subcaves | Learned Factory garrison access intel 1503 | -10/Subcaves | Ambushed by Subdwellers from Twisted Machinery 1625 | -10/Subcaves | Core integrity fell below 50% 1690 | -10/Subcaves | A swath of the cavern ceiling suddenly collapsed 1759 | -10/Subcaves | A swath of the cavern ceiling suddenly collapsed 1976 | -10/Subcaves | Core integrity fell below 20% 2097 | -10/Subcaves | Destroyed by HD-ZE4(R) with Subdweller Machine Gun Last Messages --------------- 01891_ Acquired 4 matter. 01965_ ST-7MU(R) knocked back. 01967_ System corrupted: Ion Engine rejected. 01972_ ST-7MU(R) knocked back. 01975_ ST-7MU(R) destroyed. 01979_ Acquired 3 matter. 01980_ Acquired 33 matter. 01982_ Acquired 3 matter. 01984_ Acquired 4 matter. 01986_ Acquired 2 matter. 02073_ Critical hit (Meltdown: +270). 02078_ KP-692(R) knocked back. 02083_ Com. Wheel destroyed. 02084_ KP-692(R) knocked back. 02085_ Lgt. Cannon destroyed. 02085_ Wheel destroyed. 02087_ Exp. Sensor Array destroyed. 02089_ HD-ZE4(R) Sub. Optics blasted off. 02091_ Lgt. Nuclear Core destroyed. 02093_ Lgt. Cannon destroyed. Map ----- +----------------------------------------------------+ | ?????????????????????????????????????????????????? | | ?????????????????????????????????????????????????? | | ?????????????????????????????????????????????????? | | ?????????????????????????????????????????????????? | | ?????????????????????????????????????????????????? | | ?????????????????????????????????????????????????? | | ?????????????????????????????????????????????????? | | #####????????????????????????????????????????????? | | $##???????????????????????????????????????????? | | $ $#???????????????????????????????????????????? | | $ #???????????????????????????????????????????? | | "#???????????????????????????????????????????? | | $""?????????????????????????????????????????????? | | ""##?????????????????????????????????????????????? | | #????????????????????????????????????????????????? | | ##?????????##????????????????????????????????????? | | #??????### #????????????????????????????????????? | | ##????## #????????????????????????????????????? | | "#??### #????????????????????????????????????? | | #### #????????????????????????????????????? | | " ## #?????????????????????????????????????? | | #??????????????????? ???????????????????? | | #????####????#???#? ???????????????????? | | #???## ##?###;#### #???????????????????? | | ##### #?#;;; ;;# ###??????????????????? | | ## ##???#; @ # ##?????????????????? | | "# ##??###RR# #?????????????????? | | #### ## ########%## #?????????????????? | | #??## """##";#;# ???????????????????? | | #?# ### "#"#""# #"##?????????????????????? | | #?##### ##?####"#"# ## # ##???????????????????? | | #?????###???#"##"""#"" # #???????????????????? | | # ##?????####### " ##"#"""# #????????????????????? | | ###?????## ## ###"## ##"#?????????????????????? | | ????????# ""###????#?????????????????????? | | ????????## ####""#####???????????????????????? | | ?????????#######??# # ###?????????????????????? | | ??????????????????## #?????????????????????? | | ???????????????????# #?????????????????????? | | ???????????????????# ### ??????????????? | | ???????????????????# ##?? ??????????????? | | ??????????????????## #??? "" #??????????????? | | ??????????????????# #????#"" ????????????????? | | ??????????????????### ""#????????????????????????? | | ????????????????????# ##???????????????????????? | | ????????????????????# ##??????????????????????? | | ????????????????????## #???#??????????????????? | | ?????????????????????# #? #??????????????????? | | ?????????????????????# ## #??????????????????? | | ?????????????????????## ##?????????????????? | +----------------------------------------------------+ Best States ------------- Heat Dissipation 25 Energy Generation 19 Energy Capacity 315 Matter Stores 350 Matter Capacity 350 Sight Range 16 Robot Scan Range 20 Terrain Scan Density 10 Core Shielding 20 Evasion (%) 44 Item Schematics ----------------- None Robot Schematics ------------------ None Fabricated ------------ Nothing Repaired ---------- Nothing Alien Tech Used ----------------- None Achievements -------------- None Challenges ------------ None Game ------ Seed DroneWardroneLance Manual? 0 Play Time 00:21:27 Cumulative 51.4 hours Start 2025.09.20 @ 15:41:16 End 2025.09.20 @ 16:01:37 Sessions 1 Manual Loads 0 Difficulty Rogue Special Mode None Game No. 37 Rogue 37 Adventurer 0 Explorer 0 Win Type - Total 0 Types 0/0/0/0/0/0/0/0/0/0 Lore% 13 Gallery% 34 Achievement% 33 Wizard Run 0 Options --------- Layout 1 ASCII 0 Keyboard 1 Movement Arrows Keybinds 0 Fullscreen 1 Font 24/Smallcaps Map View 50x35 Zoom Use 0% Tactical HUD 1 Map Filters NONE Filters NONE Steam 1 RUN: 90c0bf7a-496d-48aa-b62b-fcc5a3b2bd63